{"text_format":"1","workbook":"xlsx","n_sheets":4,"sheets":["2017","2018","2019","المطلوب بعد عملية الدمج النهائي"],"not_rendered":{"charts":0,"images":0,"macros":1,"external_links":0,"defined_names":1,"comments":0,"pivot_tables":0},"unopened":[],"bounds":{"document_bytes":16777216,"sheet_cells":100000,"rows_first":2000,"rows_last":500,"rows_between":2000,"halvings":0,"cell_chars":16384,"cell_head_chars":4096},"cells_cut":0,"cells_raw":0,"read":"whole","date_system":"1900"}

{"sheet":"2017","index":0,"n_rows":24,"n_cols":28,"rows_kept":24,"cut":false,"hidden":false,"merged":[]}
["الرقم","البيان","يناير 2017","فبراير 2017"," ",null,null,null,null,null,null,null,null,null,null,null,null,null,null,null,null,null,null,null,null,null,null,{"$error":"#N/A"}]
[1112,"شراء كتب",1111,22222]
[1113,"شراء أوراق",211,231]
[1115,"أدوات مطبخ",3463,4432]
[1212,"أدوات مكتبية",4533,7869]
[1214,"كتب ",5433,2323]
[1215,"ملابس",3433,5435]
[1216,"طابعات",3433,3421]
[1217,"ملاعق",7547,5654]
[1218,"صحون",523,546]
[1219,"سكاكين",765,3455]
[1220,"مقص",4654,6574]
[1312,"لوحات",2455,3333]
[1313,"إطارات",543,5323]
[1314,"إضاءة",3452,5234]
[1315,"أدوات قرطاسية",765,7685]
[1316,"بنزين",3454,4342]
[1317,"مرتب العامل",4532,6345]
[1319,"شاشات",765,3543]
[1320,"عطور",7654,4353]
[1321,"بخور",4333,4532]
[1322,"ألعاب",435,6546]
[1812,"أدوات زراعية",453,675]
[2112,"مكيفات",8765,6345]

{"sheet":"2018","index":1,"n_rows":19,"n_cols":6,"rows_kept":19,"cut":false,"hidden":false,"merged":[]}
["الرقم","البيان","يناير 2018","فبراير 2018"]
[1212,"أدوات مكتبية",765,342,null," "]
[1213,"أحبار",4325,5432]
[1214,"كتب ",345,4325]
[1215,"ملابس",567,8765]
[1218,"صحون",7654,4523]
[1219,"سكاكين",4353,4334]
[1220,"مقص",35,3534]
[1312,"لوحات",3543,4325]
[1313,"إطارات",7657,2345]
[1314,"إضاءة",324,564]
[1315,"أدوات قرطاسية",354,2342]
[1316,"بنزين",2143,343]
[1317,"مرتب العامل",6546,4543]
[1318,"كمبيوتر",2432,412]
[1320,"عطور",5423,452]
[1812,"أدوات زراعية",3233,2343]
[2112,"مكيفات",4343,2342]
[3112,"مراوح",32,2345]

{"sheet":"2019","index":2,"n_rows":22,"n_cols":5,"rows_kept":22,"cut":false,"hidden":false,"merged":[]}
["الرقم","البيان","يناير 2019","فبراير 2019"]
[1113,"شراء أوراق",6434,8767," "]
[1115,"أدوات مطبخ",255,423]
[1213,"أحبار",342,232]
[1215,"ملابس",4234,2433]
[1216,"طابعات",45,342]
[1217,"ملاعق",5443,5433]
[1218,"صحون",3464,3433]
[1219,"سكاكين",5678,6573]
[1220,"مقص",453,2342]
[1312,"لوحات",56768,343]
[1313,"إطارات",98576,5756]
[1314,"إضاءة",4332,2333]
[1315,"أدوات قرطاسية",5342,3222]
[1316,"بنزين",9876,323]
[1318,"كمبيوتر",4643,5766]
[1319,"شاشات",34678,421]
[1321,"بخور",678765,3474]
[1322,"ألعاب",8765,3456]
[1812,"أدوات زراعية",8765,2355]
[2112,"مكيفات",876,3456]
[3112,"مراوح",4536,2434]

{"sheet":"المطلوب بعد عملية الدمج النهائي","index":3,"n_rows":63,"n_cols":36,"rows_kept":63,"cut":false,"hidden":false,"merged":[[2,10,6,15]]}
["الرقم","البيان","يناير 2017","فبراير 2017","يناير 2018","فبراير 2018","يناير 2019","فبراير 2019",null,null,null,null,null,null,null,null,null,null,null,null,null,null,null,null,null,null,null,null,null,null,null,null,null,null,"الرقم"]
[{"$f":"INDEX($AI$2:$AI$200,MATCH(0,COUNTIF(A1:$A$1,$AI$2:$AI$200),0),0)","v":1112},{"$f":"VLOOKUP(الجدول414[[#This Row],[الرقم]],$AI$2:$AJ$63,2,0)","v":"شراء كتب"},1111,22222,null,null,null,null,null,null,null,null,null,null,null,null,null,null,null,null,null,null,null,null,null,null,null,null,null,null,null,null,null,null,{"$f":"'2017'!A2","v":1112},{"$f":"'2017'!B2","v":"شراء كتب"}]
[{"$f":"INDEX($AI$2:$AI$200,MATCH(0,COUNTIF(A$1:$A2,$AI$2:$AI$200),0),0)","v":1113},{"$f":"VLOOKUP(الجدول414[[#This Row],[الرقم]],$AI$2:$AJ$63,2,0)","v":"شراء أوراق"},211,231,null,null,6434,8767,null,null,"الجدول النهائي المطلوب بعد عملية دمج جميع أوراق العمل (2017 - 2018 - 2019) بدون تكرار (الرقم والبيان)  ",null,null,null,null,null,null,null,null,null,null,null,null,null,null,null,null,null,null,null,null,null,null,null,{"$f":"'2017'!A3","v":1113},{"$f":"'2017'!B3","v":"شراء أوراق"}]
[{"$f":"INDEX($AI$2:$AI$200,MATCH(0,COUNTIF(A$1:$A3,$AI$2:$AI$200),0),0)","v":1115},{"$f":"VLOOKUP(الجدول414[[#This Row],[الرقم]],$AI$2:$AJ$63,2,0)","v":"أدوات مطبخ"},3463,4432,null,null,255,423,null,null,null,null,null,null,null,null,null,null,null,null,null,null,null,null,null,null,null,null,null,null,null,null,null,null,{"$f":"'2017'!A4","v":1115},{"$f":"'2017'!B4","v":"أدوات مطبخ"}]
[{"$f":"INDEX($AI$2:$AI$200,MATCH(0,COUNTIF(A$1:$A4,$AI$2:$AI$200),0),0)","v":1212},{"$f":"VLOOKUP(الجدول414[[#This Row],[الرقم]],$AI$2:$AJ$63,2,0)","v":"أدوات مكتبية"},4533,7869,765,342,null,null,null,null,null,null,null,null,null,null,null,null,null,null,null,null,null,null,null,null,null,null,null,null,null,null,null,null,{"$f":"'2017'!A5","v":1212},{"$f":"'2017'!B5","v":"أدوات مكتبية"}]
[{"$f":"INDEX($AI$2:$AI$200,MATCH(0,COUNTIF(A$1:$A5,$AI$2:$AI$200),0),0)","v":1214},{"$f":"VLOOKUP(الجدول414[[#This Row],[الرقم]],$AI$2:$AJ$63,2,0)","v":"كتب "},5433,2323,345,4325,null,null,null,null,null,null,null,null,null,null,null,null,null,null,null,null,null,null,null,null,null,null,null,null,null,null,null,null,{"$f":"'2017'!A6","v":1214},{"$f":"'2017'!B6","v":"كتب "}]
[{"$f":"INDEX($AI$2:$AI$200,MATCH(0,COUNTIF(A$1:$A6,$AI$2:$AI$200),0),0)","v":1215},{"$f":"VLOOKUP(الجدول414[[#This Row],[الرقم]],$AI$2:$AJ$63,2,0)","v":"ملابس"},3433,5435,567,8765,4234,2433,null,null,null,null,null,null,null,null,null,null,null,null,null,null,null,null,null,null,null,null,null,null,null,null,null,null,{"$f":"'2017'!A7","v":1215},{"$f":"'2017'!B7","v":"ملابس"}]
[{"$f":"INDEX($AI$2:$AI$200,MATCH(0,COUNTIF(A$1:$A7,$AI$2:$AI$200),0),0)","v":1216},{"$f":"VLOOKUP(الجدول414[[#This Row],[الرقم]],$AI$2:$AJ$63,2,0)","v":"طابعات"},3433,3421,null,null,45,342,null,null,null,null,null,null,null,null,null,null,null,null,null,null,null,null,null,null,null,null,null,null,null,null,null,null,{"$f":"'2017'!A8","v":1216},{"$f":"'2017'!B8","v":"طابعات"}]
[{"$f":"INDEX($AI$2:$AI$200,MATCH(0,COUNTIF(A$1:$A8,$AI$2:$AI$200),0),0)","v":1217},{"$f":"VLOOKUP(الجدول414[[#This Row],[الرقم]],$AI$2:$AJ$63,2,0)","v":"ملاعق"},7547,5654,null,null,5443,5433,null,null,null,null,null,null,null,null,null,null,null,null,null,null,null,null,null,null,null,null,null,null,null,null,null,null,{"$f":"'2017'!A9","v":1217},{"$f":"'2017'!B9","v":"ملاعق"}]
[{"$f":"INDEX($AI$2:$AI$200,MATCH(0,COUNTIF(A$1:$A9,$AI$2:$AI$200),0),0)","v":1218},{"$f":"VLOOKUP(الجدول414[[#This Row],[الرقم]],$AI$2:$AJ$63,2,0)","v":"صحون"},523,546,7654,4523,3464,3433,null,null,null,null,null,null,null,null,null,null,null,null,null,null,null,null,null,null,null,null,null,null,null,null,null,null,{"$f":"'2017'!A10","v":1218},{"$f":"'2017'!B10","v":"صحون"}]
[{"$f":"INDEX($AI$2:$AI$200,MATCH(0,COUNTIF(A$1:$A10,$AI$2:$AI$200),0),0)","v":1219},{"$f":"VLOOKUP(الجدول414[[#This Row],[الرقم]],$AI$2:$AJ$63,2,0)","v":"سكاكين"},765,3455,4353,4334,5678,6573,null,null,null,null,null,null,null,null,null,null,null,null,null,null,null,null,null,null,null,null,null,null,null,null,null,null,{"$f":"'2017'!A11","v":1219},{"$f":"'2017'!B11","v":"سكاكين"}]
[{"$f":"INDEX($AI$2:$AI$200,MATCH(0,COUNTIF(A$1:$A11,$AI$2:$AI$200),0),0)","v":1220},{"$f":"VLOOKUP(الجدول414[[#This Row],[الرقم]],$AI$2:$AJ$63,2,0)","v":"مقص"},4654,6574,35,3534,453,2342,null,null,null,null,null,null,null,null,null,null,null,null,null,null,null,null,null,null,null,null,null,null,null,null,null,null,{"$f":"'2017'!A12","v":1220},{"$f":"'2017'!B12","v":"مقص"}]
[{"$f":"INDEX($AI$2:$AI$200,MATCH(0,COUNTIF(A$1:$A12,$AI$2:$AI$200),0),0)","v":1312},{"$f":"VLOOKUP(الجدول414[[#This Row],[الرقم]],$AI$2:$AJ$63,2,0)","v":"لوحات"},2455,3333,3543,4325,56768,343,null,null,null,null,null,null,null,null,null,null,null,null,null,null,null,null,null,null,null,null,null,null,null,null,null,null,{"$f":"'2017'!A13","v":1312},{"$f":"'2017'!B13","v":"لوحات"}]
[{"$f":"INDEX($AI$2:$AI$200,MATCH(0,COUNTIF(A$1:$A13,$AI$2:$AI$200),0),0)","v":1313},{"$f":"VLOOKUP(الجدول414[[#This Row],[الرقم]],$AI$2:$AJ$63,2,0)","v":"إطارات"},543,5323,7657,2345,98576,5756,null,null,null,null,null,null,null,null,null,null,null,null,null,null,null,null,null,null,null,null,null,null,null,null,null,null,{"$f":"'2017'!A14","v":1313},{"$f":"'2017'!B14","v":"إطارات"}]
[{"$f":"INDEX($AI$2:$AI$200,MATCH(0,COUNTIF(A$1:$A14,$AI$2:$AI$200),0),0)","v":1314},{"$f":"VLOOKUP(الجدول414[[#This Row],[الرقم]],$AI$2:$AJ$63,2,0)","v":"إضاءة"},3452,5234,324,564,4332,2333,null,null,null,null,null,null,null,null,null,null,null,null,null,null,null,null,null,null,null,null,null,null,null,null,null,null,{"$f":"'2017'!A15","v":1314},{"$f":"'2017'!B15","v":"إضاءة"}]
[{"$f":"INDEX($AI$2:$AI$200,MATCH(0,COUNTIF(A$1:$A15,$AI$2:$AI$200),0),0)","v":1315},{"$f":"VLOOKUP(الجدول414[[#This Row],[الرقم]],$AI$2:$AJ$63,2,0)","v":"أدوات قرطاسية"},765,7685,354,2342,5342,3222,null,null,null,null,null,null,null,null,null,null,null,null,null,null,null,null,null,null,null,null,null,null,null,null,null,null,{"$f":"'2017'!A16","v":1315},{"$f":"'2017'!B16","v":"أدوات قرطاسية"}]
[{"$f":"INDEX($AI$2:$AI$200,MATCH(0,COUNTIF(A$1:$A16,$AI$2:$AI$200),0),0)","v":1316},{"$f":"VLOOKUP(الجدول414[[#This Row],[الرقم]],$AI$2:$AJ$63,2,0)","v":"بنزين"},3454,4342,2143,343,9876,323,null,null,null,null,null,null,null,null,null,null,null,null,null,null,null,null,null,null,null,null,null,null,null,null,null,null,{"$f":"'2017'!A17","v":1316},{"$f":"'2017'!B17","v":"بنزين"}]
[{"$f":"INDEX($AI$2:$AI$200,MATCH(0,COUNTIF(A$1:$A17,$AI$2:$AI$200),0),0)","v":1317},{"$f":"VLOOKUP(الجدول414[[#This Row],[الرقم]],$AI$2:$AJ$63,2,0)","v":"مرتب العامل"},4532,6345,6546,4543,null,null,null,null,null,null,null,null,null,null,null,null,null,null,null,null,null,null,null,null,null,null,null,null,null,null,null,null,{"$f":"'2017'!A18","v":1317},{"$f":"'2017'!B18","v":"مرتب العامل"}]
[{"$f":"INDEX($AI$2:$AI$200,MATCH(0,COUNTIF(A$1:$A18,$AI$2:$AI$200),0),0)","v":1319},{"$f":"VLOOKUP(الجدول414[[#This Row],[الرقم]],$AI$2:$AJ$63,2,0)","v":"شاشات"},765,3543,null,null,34678,421,null,null,null,null,null,null,null,null,null,null,null,null,null,null,null,null,null,null,null,null,null,null,null,null,null,null,{"$f":"'2017'!A19","v":1319},{"$f":"'2017'!B19","v":"شاشات"}]
[{"$f":"INDEX($AI$2:$AI$200,MATCH(0,COUNTIF(A$1:$A19,$AI$2:$AI$200),0),0)","v":1320},{"$f":"VLOOKUP(الجدول414[[#This Row],[الرقم]],$AI$2:$AJ$63,2,0)","v":"عطور"},7654,4353,5423,452,null,null,null,null,null,null,null,null,null,null,null,null,null,null,null,null,null,null,null,null,null,null,null,null,null,null,null,null,{"$f":"'2017'!A20","v":1320},{"$f":"'2017'!B20","v":"عطور"}]
[{"$f":"INDEX($AI$2:$AI$200,MATCH(0,COUNTIF(A$1:$A20,$AI$2:$AI$200),0),0)","v":1321},{"$f":"VLOOKUP(الجدول414[[#This Row],[الرقم]],$AI$2:$AJ$63,2,0)","v":"بخور"},4333,4532,null,null,678765,3474,null,null,null,null,null,null,null,null,null,null,null,null,null,null,null,null,null,null,null,null,null,null,null,null,null,null,{"$f":"'2017'!A21","v":1321},{"$f":"'2017'!B21","v":"بخور"}]
[{"$f":"INDEX($AI$2:$AI$200,MATCH(0,COUNTIF(A$1:$A21,$AI$2:$AI$200),0),0)","v":1322},{"$f":"VLOOKUP(الجدول414[[#This Row],[الرقم]],$AI$2:$AJ$63,2,0)","v":"ألعاب"},435,6546,null,null,8765,3456,null,null,null,null,null,null,null,null,null,null,null,null,null,null,null,null,null,null,null,null,null,null,null,null,null,null,{"$f":"'2017'!A22","v":1322},{"$f":"'2017'!B22","v":"ألعاب"}]
[{"$f":"INDEX($AI$2:$AI$200,MATCH(0,COUNTIF(A$1:$A22,$AI$2:$AI$200),0),0)","v":1812},{"$f":"VLOOKUP(الجدول414[[#This Row],[الرقم]],$AI$2:$AJ$63,2,0)","v":"أدوات زراعية"},453,675,3233,2343,8765,2355,null,null,null,null,null,null,null,null,null,null,null,null,null,null,null,null,null,null,null,null,null,null,null,null,null,null,{"$f":"'2017'!A23","v":1812},{"$f":"'2017'!B23","v":"أدوات زراعية"}]
[{"$f":"INDEX($AI$2:$AI$200,MATCH(0,COUNTIF(A$1:$A23,$AI$2:$AI$200),0),0)","v":2112},{"$f":"VLOOKUP(الجدول414[[#This Row],[الرقم]],$AI$2:$AJ$63,2,0)","v":"مكيفات"},8765,6345,4343,2342,876,3456,null,null,null,null,null,null,null,null,null,null,null,null,null,null,null,null,null,null,null,null,null,null,null,null,null,null,{"$f":"'2017'!A24","v":2112},{"$f":"'2017'!B24","v":"مكيفات"}]
[{"$f":"INDEX($AI$2:$AI$200,MATCH(0,COUNTIF(A$1:$A24,$AI$2:$AI$200),0),0)","v":1213},{"$f":"VLOOKUP(الجدول414[[#This Row],[الرقم]],$AI$2:$AJ$63,2,0)","v":"أحبار"},null,null,4325,5432,342,232,null,null,null,null,null,null,null,null,null,null,null,null,null,null,null,null,null,null,null,null,null,null,null,null,null,null,{"$f":"'2018'!A2","v":1212},{"$f":"'2018'!B2","v":"أدوات مكتبية"}]
[{"$f":"INDEX($AI$2:$AI$200,MATCH(0,COUNTIF(A$1:$A25,$AI$2:$AI$200),0),0)","v":1318},{"$f":"VLOOKUP(الجدول414[[#This Row],[الرقم]],$AI$2:$AJ$63,2,0)","v":"كمبيوتر"},null,null,2432,412,4643,5766,null,null,null,null,null,null,null,null,null,null,null,null,null,null,null,null,null,null,null,null,null,null,null,null,null,null,{"$f":"'2018'!A3","v":1213},{"$f":"'2018'!B3","v":"أحبار"}]
[{"$f":"INDEX($AI$2:$AI$200,MATCH(0,COUNTIF(A$1:$A26,$AI$2:$AI$200),0),0)","v":3112},{"$f":"VLOOKUP(الجدول414[[#This Row],[الرقم]],$AI$2:$AJ$63,2,0)","v":"مراوح"},null,null,32,2345,4536,2434,null,null,null,null,null,null,null,null,null,null,null,null,null,null,null,null,null,null,null,null,null,null,null,null,null,null,{"$f":"'2018'!A4","v":1214},{"$f":"'2018'!B4","v":"كتب "}]
[null,null,null,null,null,null,null,null,null,null,null,null,null,null,null,null,null,null,null,null,null,null,null,null,null,null,null,null,null,null,null,null,null,null,{"$f":"'2018'!A5","v":1215},{"$f":"'2018'!B5","v":"ملابس"}]
[null,null,null,null,null,null,null,null,null,null,null,null,null,null,null,null,null,null,null,null,null,null,null,null,null,null,null,null,null,null,null,null,null,null,{"$f":"'2018'!A6","v":1218},{"$f":"'2018'!B6","v":"صحون"}]
[null,null,null,null,null,null,null,null,null,null,null,null,null,null,null,null,null,null,null,null,null,null,null,null,null,null,null,null,null,null,null,null,null,null,{"$f":"'2018'!A7","v":1219},{"$f":"'2018'!B7","v":"سكاكين"}]
[null,null,null,null,null,null,null,null,null,null,null,null,null,null,null,null,null,null,null,null,null,null,null,null,null,null,null,null,null,null,null,null,null,null,{"$f":"'2018'!A8","v":1220},{"$f":"'2018'!B8","v":"مقص"}]
[null,null,null,null,null,null,null,null,null,null,null,null,null,null,null,null,null,null,null,null,null,null,null,null,null,null,null,null,null,null,null,null,null,null,{"$f":"'2018'!A9","v":1312},{"$f":"'2018'!B9","v":"لوحات"}]
[null,null,null,null,null,null,null,null,null,null,null,null,null,null,null,null,null,null,null,null,null,null,null,null,null,null,null,null,null,null,null,null,null,null,{"$f":"'2018'!A10","v":1313},{"$f":"'2018'!B10","v":"إطارات"}]
[null,null,null,null,null,null,null,null,null,null,null,null,null,null,null,null,null,null,null,null,null,null,null,null,null,null,null,null,null,null,null,null,null,null,{"$f":"'2018'!A11","v":1314},{"$f":"'2018'!B11","v":"إضاءة"}]
[null,null,null,null,null,null,null,null,null,null,null,null,null,null,null,null,null,null,null,null,null,null,null,null,null,null,null,null,null,null,null,null,null,null,{"$f":"'2018'!A12","v":1315},{"$f":"'2018'!B12","v":"أدوات قرطاسية"}]
[null,null,null,null,null,null,null,null,null,null,null,null,null,null,null,null,null,null,null,null,null,null,null,null,null,null,null,null,null,null,null,null,null,null,{"$f":"'2018'!A13","v":1316},{"$f":"'2018'!B13","v":"بنزين"}]
[null,null,null,null,null,null,null,null,null,null,null,null,null,null,null,null,null,null,null,null,null,null,null,null,null,null,null,null,null,null,null,null,null,null,{"$f":"'2018'!A14","v":1317},{"$f":"'2018'!B14","v":"مرتب العامل"}]
[null,null,null,null,null,null,null,null,null,null,null,null,null,null,null,null,null,null,null,null,null,null,null,null,null,null,null,null,null,null,null,null,null,null,{"$f":"'2018'!A15","v":1318},{"$f":"'2018'!B15","v":"كمبيوتر"}]
[null,null,null,null,null,null,null,null,null,null,null,null,null,null,null,null,null,null,null,null,null,null,null,null,null,null,null,null,null,null,null,null,null,null,{"$f":"'2018'!A16","v":1320},{"$f":"'2018'!B16","v":"عطور"}]
[null,null,null,null,null,null,null,null,null,null,null,null,null,null,null,null,null,null,null,null,null,null,null,null,null,null,null,null,null,null,null,null,null,null,{"$f":"'2018'!A17","v":1812},{"$f":"'2018'!B17","v":"أدوات زراعية"}]
[null,null,null,null,null,null,null,null,null,null,null,null,null,null,null,null,null,null,null,null,null,null,null,null,null,null,null,null,null,null,null,null,null,null,{"$f":"'2018'!A18","v":2112},{"$f":"'2018'!B18","v":"مكيفات"}]
[null,null,null,null,null,null,null,null,null,null,null,null,null,null,null,null,null,null,null,null,null,null,null,null,null,null,null,null,null,null,null,null,null,null,{"$f":"'2018'!A19","v":3112},{"$f":"'2018'!B19","v":"مراوح"}]
[null,null,null,null,null,null,null,null,null,null,null,null,null,null,null,null,null,null,null,null,null,null,null,null,null,null,null,null,null,null,null,null,null,null,{"$f":"'2019'!A2","v":1113},{"$f":"'2019'!B2","v":"شراء أوراق"}]
[null,null,null,null,null,null,null,null,null,null,null,null,null,null,null,null,null,null,null,null,null,null,null,null,null,null,null,null,null,null,null,null,null,null,{"$f":"'2019'!A3","v":1115},{"$f":"'2019'!B3","v":"أدوات مطبخ"}]
[null,null,null,null,null,null,null,null,null,null,null,null,null,null,null,null,null,null,null,null,null,null,null,null,null,null,null,null,null,null,null,null,null,null,{"$f":"'2019'!A4","v":1213},{"$f":"'2019'!B4","v":"أحبار"}]
[null,null,null,null,null,null,null,null,null,null,null,null,null,null,null,null,null,null,null,null,null,null,null,null,null,null,null,null,null,null,null,null,null,null,{"$f":"'2019'!A5","v":1215},{"$f":"'2019'!B5","v":"ملابس"}]
[null,null,null,null,null,null,null,null,null,null,null,null,null,null,null,null,null,null,null,null,null,null,null,null,null,null,null,null,null,null,null,null,null,null,{"$f":"'2019'!A6","v":1216},{"$f":"'2019'!B6","v":"طابعات"}]
[null,null,null,null,null,null,null,null,null,null,null,null,null,null,null,null,null,null,null,null,null,null,null,null,null,null,null,null,null,null,null,null,null,null,{"$f":"'2019'!A7","v":1217},{"$f":"'2019'!B7","v":"ملاعق"}]
[null,null,null,null,null,null,null,null,null,null,null,null,null,null,null,null,null,null,null,null,null,null,null,null,null,null,null,null,null,null,null,null,null,null,{"$f":"'2019'!A8","v":1218},{"$f":"'2019'!B8","v":"صحون"}]
[null,null,null,null,null,null,null,null,null,null,null,null,null,null,null,null,null,null,null,null,null,null,null,null,null,null,null,null,null,null,null,null,null,null,{"$f":"'2019'!A9","v":1219},{"$f":"'2019'!B9","v":"سكاكين"}]
[null,null,null,null,null,null,null,null,null,null,null,null,null,null,null,null,null,null,null,null,null,null,null,null,null,null,null,null,null,null,null,null,null,null,{"$f":"'2019'!A10","v":1220},{"$f":"'2019'!B10","v":"مقص"}]
[null,null,null,null,null,null,null,null,null,null,null,null,null,null,null,null,null,null,null,null,null,null,null,null,null,null,null,null,null,null,null,null,null,null,{"$f":"'2019'!A11","v":1312},{"$f":"'2019'!B11","v":"لوحات"}]
[null,null,null,null,null,null,null,null,null,null,null,null,null,null,null,null,null,null,null,null,null,null,null,null,null,null,null,null,null,null,null,null,null,null,{"$f":"'2019'!A12","v":1313},{"$f":"'2019'!B12","v":"إطارات"}]
[null,null,null,null,null,null,null,null,null,null,null,null,null,null,null,null,null,null,null,null,null,null,null,null,null,null,null,null,null,null,null,null,null,null,{"$f":"'2019'!A13","v":1314},{"$f":"'2019'!B13","v":"إضاءة"}]
[null,null,null,null,null,null,null,null,null,null,null,null,null,null,null,null,null,null,null,null,null,null,null,null,null,null,null,null,null,null,null,null,null,null,{"$f":"'2019'!A14","v":1315},{"$f":"'2019'!B14","v":"أدوات قرطاسية"}]
[null,null,null,null,null,null,null,null,null,null,null,null,null,null,null,null,null,null,null,null,null,null,null,null,null,null,null,null,null,null,null,null,null,null,{"$f":"'2019'!A15","v":1316},{"$f":"'2019'!B15","v":"بنزين"}]
[null,null,null,null,null,null,null,null,null,null,null,null,null,null,null,null,null,null,null,null,null,null,null,null,null,null,null,null,null,null,null,null,null,null,{"$f":"'2019'!A16","v":1318},{"$f":"'2019'!B16","v":"كمبيوتر"}]
[null,null,null,null,null,null,null,null,null,null,null,null,null,null,null,null,null,null,null,null,null,null,null,null,null,null,null,null,null,null,null,null,null,null,{"$f":"'2019'!A17","v":1319},{"$f":"'2019'!B17","v":"شاشات"}]
[null,null,null,null,null,null,null,null,null,null,null,null,null,null,null,null,null,null,null,null,null,null,null,null,null,null,null,null,null,null,null,null,null,null,{"$f":"'2019'!A18","v":1321},{"$f":"'2019'!B18","v":"بخور"}]
[null,null,null,null,null,null,null,null,null,null,null,null,null,null,null,null,null,null,null,null,null,null,null,null,null,null,null,null,null,null,null,null,null,null,{"$f":"'2019'!A19","v":1322},{"$f":"'2019'!B19","v":"ألعاب"}]
[null,null,null,null,null,null,null,null,null,null,null,null,null,null,null,null,null,null,null,null,null,null,null,null,null,null,null,null,null,null,null,null,null,null,{"$f":"'2019'!A20","v":1812},{"$f":"'2019'!B20","v":"أدوات زراعية"}]
[null,null,null,null,null,null,null,null,null,null,null,null,null,null,null,null,null,null,null,null,null,null,null,null,null,null,null,null,null,null,null,null,null,null,{"$f":"'2019'!A21","v":2112},{"$f":"'2019'!B21","v":"مكيفات"}]
[null,null,null,null,null,null,null,null,null,null,null,null,null,null,null,null,null,null,null,null,null,null,null,null,null,null,null,null,null,null,null,null,null,null,{"$f":"'2019'!A22","v":3112},{"$f":"'2019'!B22","v":"مراوح"}]